[Event "Titled Tuesday Blitz April 18 Early 2023"]
[White "Amilal Munkhdalai"]
[Black "Lenderman, Aleksandr"]
[WhiteFideId "4903250"]
[BlackFideId "2021285"]
[WhiteElo "2293"]
[BlackElo "2607"]
[Result "1-0"]
[Round "06"]
[TimeControl "180+2"]
[Date "2023.04.18"]
[WhiteClock "0:00:25"]
[BlackClock "0:01:51"]

1. e4 {[%clk 0:03:00]}  g6 {[%clk 0:03:00]} 2. d4 {[%clk 0:03:00]}  Bg7 {[%clk 0:03:00]} 3. Nc3 {[%clk 0:03:00]}  c6 {[%clk 0:03:00]} 4. Be3 {[%clk 0:02:58]}  d5 {[%clk 0:02:59]} 5. Nf3 {[%clk 0:02:55]}  dxe4 {[%clk 0:02:55]} 6. Nxe4 {[%clk 0:02:55]}  Nf6 {[%clk 0:02:56]} 7. Nxf6+ {[%clk 0:02:54]}  exf6 {[%clk 0:02:57]} 8. h3 {[%clk 0:02:50]}  O-O {[%clk 0:02:58]} 9. Bc4 {[%clk 0:02:51]}  Na6 {[%clk 0:02:57]} 10. O-O {[%clk 0:02:50]}  Nc7 {[%clk 0:02:57]} 11. Qd2 {[%clk 0:02:50]}  Nd5 {[%clk 0:02:57]} 12. Bh6 {[%clk 0:02:46]}  Be6 {[%clk 0:02:57]} 13. Bxg7 {[%clk 0:02:45]}  Kxg7 {[%clk 0:02:58]} 14. Rfe1 {[%clk 0:02:42]}  Qd6 {[%clk 0:02:58]} 15. Bf1 {[%clk 0:02:39]}  Rad8 {[%clk 0:02:56]} 16. c3 {[%clk 0:02:38]}  Qc7 {[%clk 0:02:55]} 17. Qc2 {[%clk 0:02:28]}  Nf4 {[%clk 0:02:55]} 18. Nd2 {[%clk 0:02:14]}  Bd5 {[%clk 0:02:49]} 19. Ne4 {[%clk 0:02:04]}  Rfe8 {[%clk 0:02:45]} 20. Nc5 {[%clk 0:02:03]}  b6 {[%clk 0:02:39]} 21. Nd3 {[%clk 0:02:03]}  Nxd3 {[%clk 0:02:32]} 22. Bxd3 {[%clk 0:02:00]}  Rxe1+ {[%clk 0:02:31]} 23. Rxe1 {[%clk 0:01:59]}  c5 {[%clk 0:02:32]} 24. c4 {[%clk 0:01:46]}  Bb7 {[%clk 0:02:33]} 25. d5 {[%clk 0:01:46]}  Bc8 {[%clk 0:02:32]} 26. Qc3 {[%clk 0:01:43]}  Qd6 {[%clk 0:02:31]} 27. b3 {[%clk 0:01:40]}  Bd7 {[%clk 0:02:27]} 28. Bf1 {[%clk 0:01:37]}  h5 {[%clk 0:02:23]} 29. h4 {[%clk 0:01:34]}  a6 {[%clk 0:02:20]} 30. a4 {[%clk 0:01:31]}  Rb8 {[%clk 0:02:19]} 31. g3 {[%clk 0:01:18]}  b5 {[%clk 0:02:19]} 32. axb5 {[%clk 0:01:18]}  axb5 {[%clk 0:02:20]} 33. Ra1 {[%clk 0:01:14]}  bxc4 {[%clk 0:02:18]} 34. bxc4 {[%clk 0:01:14]}  Rb4 {[%clk 0:02:18]} 35. Qe3 {[%clk 0:01:13]}  Qb6 {[%clk 0:02:12]} 36. Qe7 {[%clk 0:01:03]}  Bc8 {[%clk 0:02:07]} 37. Ra8 {[%clk 0:00:49]}  Qb7 {[%clk 0:01:58]} 38. Qxb7 {[%clk 0:00:41]}  Bxb7 {[%clk 0:01:59]} 39. Ra5 {[%clk 0:00:41]}  Rb1 {[%clk 0:01:56]} 40. Rxc5 {[%clk 0:00:40]}  Kf8 {[%clk 0:01:55]} 41. Rc7 {[%clk 0:00:32]}  Ba6 {[%clk 0:01:54]} 42. Kg2 {[%clk 0:00:31]}  Ke8 {[%clk 0:01:54]} 43. Rc6 {[%clk 0:00:26]}  f5 {[%clk 0:01:51]} 44. Rxa6 {[%clk 0:00:25]} 1-0


[Site "https://www.chess.com"]

[Event "Titled Tuesday Blitz April 18 Early 2023"]
[White "Steinberg, Nitzan"]
[Black "Shuvalova, Polina"]
[WhiteFideId "2801795"]
[BlackFideId "24171760"]
[WhiteElo "2486"]
[BlackElo "2281"]
[Result "1-0"]
[Round "06"]
[TimeControl "180+2"]
[Date "2023.04.18"]
[WhiteClock "0:00:16"]
[BlackClock "0:00:04"]

1. d4 {[%clk 0:02:28]}  Nf6 {[%clk 0:02:54]} 2. Nf3 {[%clk 0:02:28]}  d5 {[%clk 0:02:53]} 3. Bf4 {[%clk 0:02:28]}  c5 {[%clk 0:02:52]} 4. e3 {[%clk 0:02:29]}  Nc6 {[%clk 0:02:52]} 5. Nbd2 {[%clk 0:02:29]}  Bg4 {[%clk 0:02:43]} 6. c3 {[%clk 0:02:29]}  e6 {[%clk 0:02:42]} 7. h3 {[%clk 0:02:28]}  Bh5 {[%clk 0:02:41]} 8. Bb5 {[%clk 0:02:28]}  Be7 {[%clk 0:02:37]} 9. g4 {[%clk 0:02:29]}  Bg6 {[%clk 0:02:34]} 10. Ne5 {[%clk 0:02:29]}  Rc8 {[%clk 0:02:34]} 11. h4 {[%clk 0:02:28]}  h6 {[%clk 0:02:04]} 12. Nxg6 {[%clk 0:02:28]}  fxg6 {[%clk 0:02:05]} 13. Qc2 {[%clk 0:02:18]}  Kf7 {[%clk 0:02:02]} 14. h5 {[%clk 0:01:37]}  g5 {[%clk 0:01:49]} 15. Bg3 {[%clk 0:01:37]}  Rf8 {[%clk 0:01:43]} 16. Nf3 {[%clk 0:01:19]}  Kg8 {[%clk 0:01:41]} 17. Bxc6 {[%clk 0:01:17]}  bxc6 {[%clk 0:01:40]} 18. Ne5 {[%clk 0:01:16]}  Ne4 {[%clk 0:01:36]} 19. O-O {[%clk 0:01:05]}  Bd6 {[%clk 0:01:32]} 20. Ng6 {[%clk 0:01:03]}  Rf7 {[%clk 0:01:17]} 21. Bxd6 {[%clk 0:01:03]}  Qxd6 {[%clk 0:01:17]} 22. f3 {[%clk 0:01:04]}  Nf6 {[%clk 0:01:15]} 23. Qh2 {[%clk 0:01:04]}  Qxh2+ {[%clk 0:01:12]} 24. Kxh2 {[%clk 0:01:05]}  Rb7 {[%clk 0:01:12]} 25. b3 {[%clk 0:01:03]}  c4 {[%clk 0:00:53]} 26. b4 {[%clk 0:00:54]}  Ra8 {[%clk 0:00:46]} 27. Ne5 {[%clk 0:00:43]}  Rb6 {[%clk 0:00:45]} 28. Rfb1 {[%clk 0:00:40]}  a6 {[%clk 0:00:37]} 29. a4 {[%clk 0:00:40]}  Rc8 {[%clk 0:00:38]} 30. Rb2 {[%clk 0:00:37]}  Kf8 {[%clk 0:00:37]} 31. Kg3 {[%clk 0:00:35]}  Ke7 {[%clk 0:00:37]} 32. Rab1 {[%clk 0:00:21]}  Nd7 {[%clk 0:00:35]} 33. Ng6+ {[%clk 0:00:21]}  Kd6 {[%clk 0:00:35]} 34. e4 {[%clk 0:00:22]}  e5 {[%clk 0:00:31]} 35. a5 {[%clk 0:00:18]}  Rbb8 {[%clk 0:00:30]} 36. Rd1 {[%clk 0:00:18]}  exd4 {[%clk 0:00:24]} 37. Rxd4 {[%clk 0:00:19]}  Re8 {[%clk 0:00:13]} 38. Rbd2 {[%clk 0:00:19]}  Rbc8 {[%clk 0:00:11]} 39. Rxc4 {[%clk 0:00:19]}  Ne5 {[%clk 0:00:08]} 40. Nxe5 {[%clk 0:00:18]}  Rxe5 {[%clk 0:00:09]} 41. exd5 {[%clk 0:00:15]}  Rxd5 {[%clk 0:00:04]} 42. Rxd5+ {[%clk 0:00:16]}  Kxd5 {[%clk 0:00:05]} 43. Rd4+ {[%clk 0:00:16]}  Ke5 {[%clk 0:00:05]} 44. Rd7 {[%clk 0:00:16]}  c5 {[%clk 0:00:05]} 45. Rxg7 {[%clk 0:00:15]}  c4 {[%clk 0:00:05]} 46. Rg6 {[%clk 0:00:13]}  Rd8 {[%clk 0:00:04]} 47. Rc6 {[%clk 0:00:14]}  Kd5 {[%clk 0:00:02]} 48. Rc5+ {[%clk 0:00:14]}  Kd6 {[%clk 0:00:02]} 49. Rxc4 {[%clk 0:00:15]}  Re8 {[%clk 0:00:03]} 50. Rc5 {[%clk 0:00:14]}  Re1 {[%clk 0:00:03]} 51. Rf5 {[%clk 0:00:14]}  Rg1+ {[%clk 0:00:04]} 52. Kf2 {[%clk 0:00:14]}  Rc1 {[%clk 0:00:05]} 53. Rf6+ {[%clk 0:00:14]}  Kd5 {[%clk 0:00:05]} 54. Rxh6 {[%clk 0:00:15]}  Rxc3 {[%clk 0:00:04]} 55. Rxa6 {[%clk 0:00:16]} 1-0


[Site "https://www.chess.com"]

[Event "Titled Tuesday Blitz April 18 Early 2023"]
[White "Harshad S"]
[Black "Kukhmazov, Arsen"]
[WhiteFideId "46616551"]
[BlackFideId "24108260"]
[WhiteElo "2163"]
[BlackElo "2396"]
[Result "0-1"]
[Round "06"]
[TimeControl "180+2"]
[Date "2023.04.18"]
[WhiteClock "0:00:02"]
[BlackClock "0:00:21"]

1. e4 {[%clk 0:03:00]}  e5 {[%clk 0:02:58]} 2. Nf3 {[%clk 0:03:01]}  Nc6 {[%clk 0:02:59]} 3. Bb5 {[%clk 0:03:01]}  a6 {[%clk 0:02:59]} 4. Ba4 {[%clk 0:03:02]}  Nf6 {[%clk 0:02:59]} 5. d3 {[%clk 0:03:02]}  Bc5 {[%clk 0:02:57]} 6. c3 {[%clk 0:02:53]}  b5 {[%clk 0:02:52]} 7. Bb3 {[%clk 0:02:52]}  d6 {[%clk 0:02:52]} 8. O-O {[%clk 0:02:50]}  O-O {[%clk 0:02:41]} 9. h3 {[%clk 0:02:49]}  h6 {[%clk 0:02:41]} 10. a4 {[%clk 0:02:48]}  Bb7 {[%clk 0:02:39]} 11. Nbd2 {[%clk 0:02:33]}  Ne7 {[%clk 0:02:28]} 12. d4 {[%clk 0:02:21]}  exd4 {[%clk 0:02:27]} 13. cxd4 {[%clk 0:02:22]}  Bb6 {[%clk 0:02:27]} 14. Re1 {[%clk 0:02:21]}  c5 {[%clk 0:02:20]} 15. d5 {[%clk 0:02:14]}  c4 {[%clk 0:02:17]} 16. Bc2 {[%clk 0:02:15]}  Ng6 {[%clk 0:02:18]} 17. Nf1 {[%clk 0:02:14]}  b4 {[%clk 0:02:09]} 18. Be3 {[%clk 0:02:11]}  a5 {[%clk 0:02:05]} 19. Bd4 {[%clk 0:02:08]}  Rc8 {[%clk 0:02:04]} 20. Ne3 {[%clk 0:02:06]}  Re8 {[%clk 0:01:45]} 21. Nf5 {[%clk 0:02:04]}  Ne5 {[%clk 0:01:45]} 22. Nxe5 {[%clk 0:02:00]}  dxe5 {[%clk 0:01:46]} 23. Be3 {[%clk 0:01:55]}  Bxe3 {[%clk 0:01:42]} 24. Rxe3 {[%clk 0:01:56]}  Kh7 {[%clk 0:01:31]} 25. Rc1 {[%clk 0:01:53]}  g6 {[%clk 0:01:23]} 26. Ng3 {[%clk 0:01:52]}  Qb6 {[%clk 0:01:22]} 27. Qf3 {[%clk 0:01:44]}  Kg7 {[%clk 0:01:09]} 28. Rd1 {[%clk 0:01:42]}  Rcd8 {[%clk 0:01:09]} 29. Qe2 {[%clk 0:01:36]}  Ba6 {[%clk 0:01:07]} 30. Qf3 {[%clk 0:01:33]}  b3 {[%clk 0:01:07]} 31. Bb1 {[%clk 0:01:33]}  Qb4 {[%clk 0:01:07]} 32. Ne2 {[%clk 0:01:28]}  Qxa4 {[%clk 0:01:06]} 33. Qg3 {[%clk 0:01:23]}  Qb4 {[%clk 0:01:00]} 34. f4 {[%clk 0:01:19]}  Qe7 {[%clk 0:00:56]} 35. Rf1 {[%clk 0:01:14]}  Nh5 {[%clk 0:00:49]} 36. Qf3 {[%clk 0:01:13]}  Nxf4 {[%clk 0:00:49]} 37. Nxf4 {[%clk 0:01:12]}  exf4 {[%clk 0:00:49]} 38. Qxf4 {[%clk 0:01:13]}  c3 {[%clk 0:00:50]} 39. Bd3 {[%clk 0:00:56]}  Bxd3 {[%clk 0:00:41]} 40. Rxd3 {[%clk 0:00:57]}  cxb2 {[%clk 0:00:35]} 41. Rxb3 {[%clk 0:00:56]}  Rb8 {[%clk 0:00:34]} 42. Rxb8 {[%clk 0:00:52]}  Qa7+ {[%clk 0:00:34]} 43. Kh1 {[%clk 0:00:27]}  Rxb8 {[%clk 0:00:34]} 44. Qf6+ {[%clk 0:00:18]}  Kg8 {[%clk 0:00:34]} 45. Rb1 {[%clk 0:00:16]}  Qb6 {[%clk 0:00:30]} 46. d6 {[%clk 0:00:16]}  a4 {[%clk 0:00:29]} 47. Rf1 {[%clk 0:00:06]}  Qb7 {[%clk 0:00:25]} 48. e5 {[%clk 0:00:02]}  b1=Q {[%clk 0:00:24]} 49. Rxb1 {[%clk 0:00:02]}  Qxb1+ {[%clk 0:00:25]} 50. Kh2 {[%clk 0:00:03]}  Qf5 {[%clk 0:00:24]} 51. Qe7 {[%clk 0:00:03]}  Qe6 {[%clk 0:00:22]} 52. Qc7 {[%clk 0:00:02]}  Qxe5+ {[%clk 0:00:21]} 0-1


[Site "https://www.chess.com"]

[Event "Titled Tuesday Blitz April 18 Early 2023"]
[White "Beerdsen, Thomas"]
[Black "Horobetz, Graham"]
[WhiteFideId "1030108"]
[BlackFideId "2047322"]
[WhiteElo "2547"]
[BlackElo "2623"]
[Result "1-0"]
[Round "06"]
[TimeControl "180+2"]
[Date "2023.04.18"]
[WhiteClock "0:03:01"]
[BlackClock "0:01:56"]

1. e4 {[%clk 0:03:00]}  c5 {[%clk 0:03:00]} 2. Nf3 {[%clk 0:03:01]}  d6 {[%clk 0:03:00]} 3. d4 {[%clk 0:03:01]}  cxd4 {[%clk 0:03:01]} 4. Nxd4 {[%clk 0:03:02]}  Nf6 {[%clk 0:03:01]} 5. Nc3 {[%clk 0:03:02]}  a6 {[%clk 0:03:01]} 6. a3 {[%clk 0:03:03]}  e5 {[%clk 0:03:00]} 7. Nf5 {[%clk 0:03:04]}  d5 {[%clk 0:02:57]} 8. Bg5 {[%clk 0:03:04]}  d4 {[%clk 0:02:56]} 9. Bxf6 {[%clk 0:03:04]}  Qxf6 {[%clk 0:02:52]} 10. Nd5 {[%clk 0:03:04]}  Qc6 {[%clk 0:02:48]} 11. c4 {[%clk 0:03:04]}  Nd7 {[%clk 0:02:14]} 12. Bd3 {[%clk 0:03:01]}  g6 {[%clk 0:01:56]} 13. Ng3 {[%clk 0:03:01]}  Bg7 {[%clk 0:01:56]} 14. O-O {[%clk 0:03:01]}  O-O {[%clk 0:01:56]} 15. Ne7+ {[%clk 0:03:01]} 1-0


[Site "https://www.chess.com"]

[Event "Titled Tuesday Blitz April 18 Early 2023"]
[White "Kushko, Dmitriy"]
[Black "Janaszak, Dawid"]
[WhiteFideId "14162261"]
[BlackFideId "1119206"]
[WhiteElo "2230"]
[BlackElo "2220"]
[Result "1-0"]
[Round "06"]
[TimeControl "180+2"]
[Date "2023.04.18"]
[WhiteClock "0:01:20"]
[BlackClock "0:00:51"]

1. f4 {[%clk 0:03:00]}  c5 {[%clk 0:02:55]} 2. Nf3 {[%clk 0:03:00]}  Nc6 {[%clk 0:02:55]} 3. g3 {[%clk 0:03:01]}  g6 {[%clk 0:02:51]} 4. Bg2 {[%clk 0:03:01]}  Bg7 {[%clk 0:02:52]} 5. O-O {[%clk 0:03:01]}  Nf6 {[%clk 0:02:53]} 6. d3 {[%clk 0:03:01]}  d5 {[%clk 0:02:52]} 7. Qe1 {[%clk 0:03:01]}  d4 {[%clk 0:02:51]} 8. Na3 {[%clk 0:03:01]}  O-O {[%clk 0:02:50]} 9. c4 {[%clk 0:03:01]}  Qc7 {[%clk 0:02:42]} 10. Nc2 {[%clk 0:02:58]}  e5 {[%clk 0:02:36]} 11. fxe5 {[%clk 0:02:50]}  Ng4 {[%clk 0:02:36]} 12. b4 {[%clk 0:02:45]}  cxb4 {[%clk 0:02:30]} 13. Nxb4 {[%clk 0:02:46]}  Ngxe5 {[%clk 0:02:26]} 14. Nd5 {[%clk 0:02:45]}  Qd8 {[%clk 0:02:23]} 15. Nxe5 {[%clk 0:02:28]}  Nxe5 {[%clk 0:02:22]} 16. Qf2 {[%clk 0:02:24]}  Ng4 {[%clk 0:02:18]} 17. Qf3 {[%clk 0:02:24]}  Ne5 {[%clk 0:02:04]} 18. Qf4 {[%clk 0:02:24]}  Be6 {[%clk 0:01:57]} 19. Nf6+ {[%clk 0:02:13]}  Bxf6 {[%clk 0:01:54]} 20. Qxf6 {[%clk 0:02:14]}  Qxf6 {[%clk 0:01:54]} 21. Rxf6 {[%clk 0:02:15]}  Ng4 {[%clk 0:01:46]} 22. Rf4 {[%clk 0:02:14]}  Ne3 {[%clk 0:01:41]} 23. Bxe3 {[%clk 0:02:10]}  dxe3 {[%clk 0:01:41]} 24. Re4 {[%clk 0:02:09]}  Rab8 {[%clk 0:01:37]} 25. Rxe3 {[%clk 0:02:09]}  b5 {[%clk 0:01:37]} 26. c5 {[%clk 0:02:09]}  Rfc8 {[%clk 0:01:37]} 27. d4 {[%clk 0:02:08]}  Bc4 {[%clk 0:01:34]} 28. a3 {[%clk 0:01:53]}  a5 {[%clk 0:01:34]} 29. Rc1 {[%clk 0:01:51]}  Rd8 {[%clk 0:01:25]} 30. d5 {[%clk 0:01:26]}  Bxd5 {[%clk 0:00:51]} 31. c6 {[%clk 0:01:26]}  Rbc8 {[%clk 0:00:51]} 32. c7 {[%clk 0:01:21]}  Rd7 {[%clk 0:00:52]} 33. Rd3 {[%clk 0:01:20]}  Be6 {[%clk 0:00:51]} 34. Rxd7 {[%clk 0:01:20]}  Bxd7 {[%clk 0:00:52]} 35. Bb7 {[%clk 0:01:20]}  b4 {[%clk 0:00:51]} 36. Bxc8 {[%clk 0:01:20]}  Bxc8 {[%clk 0:00:51]} 37. axb4 {[%clk 0:01:20]}  axb4 {[%clk 0:00:51]} 38. Rd1 {[%clk 0:01:20]} 1-0


[Site "https://www.chess.com"]

[Event "Titled Tuesday Blitz April 18 Early 2023"]
[White "Nagy, Gabor"]
[Black "Elgersma, Onno"]
[WhiteFideId "737119"]
[BlackFideId "1053531"]
[WhiteElo "2514"]
[BlackElo "2252"]
[Result "1-0"]
[Round "06"]
[TimeControl "180+2"]
[Date "2023.04.18"]
[WhiteClock "0:00:23"]
[BlackClock "0:00:05"]

1. d4 {[%clk 0:02:54]}  Nf6 {[%clk 0:02:59]} 2. Nc3 {[%clk 0:02:54]}  d5 {[%clk 0:02:55]} 3. Bf4 {[%clk 0:02:55]}  e6 {[%clk 0:02:55]} 4. Nb5 {[%clk 0:02:54]}  Na6 {[%clk 0:02:54]} 5. e3 {[%clk 0:02:54]}  Be7 {[%clk 0:02:53]} 6. h4 {[%clk 0:02:52]}  O-O {[%clk 0:02:43]} 7. Nf3 {[%clk 0:02:51]}  c5 {[%clk 0:02:41]} 8. c3 {[%clk 0:02:48]}  Bd7 {[%clk 0:02:33]} 9. a4 {[%clk 0:02:46]}  Ne4 {[%clk 0:02:19]} 10. Bd3 {[%clk 0:02:42]}  f5 {[%clk 0:02:00]} 11. Ne5 {[%clk 0:02:40]}  Be8 {[%clk 0:02:00]} 12. h5 {[%clk 0:02:33]}  Nb8 {[%clk 0:01:58]} 13. f3 {[%clk 0:02:30]}  Nd6 {[%clk 0:01:56]} 14. dxc5 {[%clk 0:02:23]}  Nxb5 {[%clk 0:01:53]} 15. Bxb5 {[%clk 0:02:21]}  Bxc5 {[%clk 0:01:52]} 16. Bxe8 {[%clk 0:02:16]}  Qxe8 {[%clk 0:01:50]} 17. c4 {[%clk 0:02:12]}  dxc4 {[%clk 0:01:13]} 18. Rc1 {[%clk 0:02:10]}  Nc6 {[%clk 0:01:05]} 19. Rxc4 {[%clk 0:02:03]}  Rd8 {[%clk 0:00:55]} 20. Qe2 {[%clk 0:01:53]}  Nxe5 {[%clk 0:00:49]} 21. Bxe5 {[%clk 0:01:51]}  b6 {[%clk 0:00:49]} 22. h6 {[%clk 0:01:47]}  g6 {[%clk 0:00:47]} 23. O-O {[%clk 0:01:38]}  Rd5 {[%clk 0:00:47]} 24. Bg7 {[%clk 0:01:37]}  Rf7 {[%clk 0:00:45]} 25. b4 {[%clk 0:01:37]}  Bf8 {[%clk 0:00:45]} 26. Bxf8 {[%clk 0:01:34]}  Qxf8 {[%clk 0:00:37]} 27. e4 {[%clk 0:01:35]}  fxe4 {[%clk 0:00:35]} 28. Qxe4 {[%clk 0:01:34]}  Qxh6 {[%clk 0:00:35]} 29. Rc8+ {[%clk 0:01:31]}  Kg7 {[%clk 0:00:31]} 30. Qxe6 {[%clk 0:01:31]}  Qd2 {[%clk 0:00:26]} 31. Rf2 {[%clk 0:01:24]}  Qd1+ {[%clk 0:00:25]} 32. Kh2 {[%clk 0:01:23]}  Qd4 {[%clk 0:00:26]} 33. Qe1 {[%clk 0:00:41]}  Re5 {[%clk 0:00:20]} 34. Qc3 {[%clk 0:00:39]}  Qh4+ {[%clk 0:00:11]} 35. Kg1 {[%clk 0:00:38]}  Qf6 {[%clk 0:00:11]} 36. Rc6 {[%clk 0:00:36]}  Re1+ {[%clk 0:00:10]} 37. Qxe1 {[%clk 0:00:36]}  Qxc6 {[%clk 0:00:10]} 38. b5 {[%clk 0:00:35]}  Qc5 {[%clk 0:00:10]} 39. Kh1 {[%clk 0:00:32]}  Re7 {[%clk 0:00:10]} 40. Qa1+ {[%clk 0:00:32]}  Qe5 {[%clk 0:00:10]} 41. Qxe5+ {[%clk 0:00:23]}  Rxe5 {[%clk 0:00:11]} 42. Rc2 {[%clk 0:00:23]}  Kf6 {[%clk 0:00:12]} 43. Rc7 {[%clk 0:00:23]}  Re7 {[%clk 0:00:12]} 44. Rc6+ {[%clk 0:00:22]}  Re6 {[%clk 0:00:11]} 45. Rc8 {[%clk 0:00:21]}  Re1+ {[%clk 0:00:11]} 46. Kh2 {[%clk 0:00:22]}  Ra1 {[%clk 0:00:11]} 47. Rc6+ {[%clk 0:00:20]}  Kg5 {[%clk 0:00:12]} 48. Rc7 {[%clk 0:00:20]}  Rxa4 {[%clk 0:00:11]} 49. Rxh7 {[%clk 0:00:21]}  Rb4 {[%clk 0:00:12]} 50. Rxa7 {[%clk 0:00:21]}  Rxb5 {[%clk 0:00:12]} 51. Kg3 {[%clk 0:00:20]}  Rb1 {[%clk 0:00:12]} 52. Rb7 {[%clk 0:00:21]}  b5 {[%clk 0:00:13]} 53. f4+ {[%clk 0:00:21]}  Kf5 {[%clk 0:00:13]} 54. Rb6 {[%clk 0:00:21]}  b4 {[%clk 0:00:12]} 55. Rb5+ {[%clk 0:00:21]}  Kf6 {[%clk 0:00:12]} 56. Kg4 {[%clk 0:00:22]}  Rb2 {[%clk 0:00:12]} 57. g3 {[%clk 0:00:22]}  b3 {[%clk 0:00:13]} 58. Rb6+ {[%clk 0:00:23]}  Kf7 {[%clk 0:00:12]} 59. Kg5 {[%clk 0:00:23]}  Rc2 {[%clk 0:00:12]} 60. Rxb3 {[%clk 0:00:23]}  Rc5+ {[%clk 0:00:12]} 61. Kg4 {[%clk 0:00:23]}  Kf6 {[%clk 0:00:13]} 62. Rb6+ {[%clk 0:00:23]}  Kf7 {[%clk 0:00:13]} 63. Kh4 {[%clk 0:00:24]}  Ra5 {[%clk 0:00:13]} 64. g4 {[%clk 0:00:24]}  Rc5 {[%clk 0:00:14]} 65. Rb7+ {[%clk 0:00:24]}  Kg8 {[%clk 0:00:13]} 66. Rd7 {[%clk 0:00:24]}  Ra5 {[%clk 0:00:13]} 67. Re7 {[%clk 0:00:24]}  Rb5 {[%clk 0:00:14]} 68. Re5 {[%clk 0:00:25]}  Rb6 {[%clk 0:00:12]} 69. Kg5 {[%clk 0:00:25]}  Kg7 {[%clk 0:00:12]} 70. Re7+ {[%clk 0:00:25]}  Kf8 {[%clk 0:00:13]} 71. Ra7 {[%clk 0:00:23]}  Rc6 {[%clk 0:00:13]} 72. Kh6 {[%clk 0:00:23]}  Rd6 {[%clk 0:00:11]} 73. g5 {[%clk 0:00:23]}  Rc6 {[%clk 0:00:08]} 74. Ra8+ {[%clk 0:00:21]}  Kf7 {[%clk 0:00:08]} 75. Kh7 {[%clk 0:00:20]}  Rc4 {[%clk 0:00:07]} 76. Ra7+ {[%clk 0:00:19]}  Kf8 {[%clk 0:00:08]} 77. Kxg6 {[%clk 0:00:20]}  Rxf4 {[%clk 0:00:08]} 78. Ra8+ {[%clk 0:00:20]}  Ke7 {[%clk 0:00:08]} 79. Rh8 {[%clk 0:00:19]}  Rf1 {[%clk 0:00:07]} 80. Kg7 {[%clk 0:00:19]}  Rf7+ {[%clk 0:00:07]} 81. Kh6 {[%clk 0:00:20]}  Rf1 {[%clk 0:00:07]} 82. g6 {[%clk 0:00:20]}  Rh1+ {[%clk 0:00:07]} 83. Kg7 {[%clk 0:00:20]}  Rf1 {[%clk 0:00:06]} 84. Ra8 {[%clk 0:00:21]}  Rg1 {[%clk 0:00:05]} 85. Ra2 {[%clk 0:00:21]}  Ke8 {[%clk 0:00:05]} 86. Re2+ {[%clk 0:00:22]}  Kd7 {[%clk 0:00:06]} 87. Kf7 {[%clk 0:00:22]}  Rf1+ {[%clk 0:00:06]} 88. Kg8 {[%clk 0:00:23]}  Rg1 {[%clk 0:00:07]} 89. g7 {[%clk 0:00:23]}  Kd8 {[%clk 0:00:06]} 90. Re4 {[%clk 0:00:23]}  Kd7 {[%clk 0:00:06]} 91. Kf7 {[%clk 0:00:23]}  Rf1+ {[%clk 0:00:06]} 92. Kg6 {[%clk 0:00:23]}  Rg1+ {[%clk 0:00:06]} 93. Kf6 {[%clk 0:00:23]}  Rf1+ {[%clk 0:00:06]} 94. Kg5 {[%clk 0:00:23]}  Kd6 {[%clk 0:00:05]} 95. g8=Q {[%clk 0:00:22]}  Rg1+ {[%clk 0:00:05]} 96. Rg4 {[%clk 0:00:23]} 1-0


[Site "https://www.chess.com"]

[Event "Titled Tuesday Blitz April 18 Early 2023"]
[White "Csonka, Balazs"]
[Black "Eynullayev, Atilla"]
[WhiteFideId "742910"]
[BlackFideId "13413570"]
[WhiteElo "2404"]
[BlackElo "2181"]
[Result "1-0"]
[Round "06"]
[TimeControl "180+2"]
[Date "2023.04.18"]
[WhiteClock "0:00:05"]
[BlackClock "0:00:09"]

1. c4 {[%clk 0:03:00]}  e5 {[%clk 0:02:57]} 2. g3 {[%clk 0:03:00]}  c6 {[%clk 0:02:57]} 3. Nf3 {[%clk 0:02:57]}  e4 {[%clk 0:02:57]} 4. Nd4 {[%clk 0:02:58]}  d5 {[%clk 0:02:57]} 5. d3 {[%clk 0:02:56]}  dxc4 {[%clk 0:02:32]} 6. dxe4 {[%clk 0:02:54]}  Bb4+ {[%clk 0:02:31]} 7. Nc3 {[%clk 0:02:53]}  Nf6 {[%clk 0:02:31]} 8. Bg2 {[%clk 0:02:52]}  O-O {[%clk 0:02:29]} 9. O-O {[%clk 0:02:24]}  Re8 {[%clk 0:02:29]} 10. Bg5 {[%clk 0:02:23]}  h6 {[%clk 0:02:27]} 11. Bxf6 {[%clk 0:02:22]}  Qxf6 {[%clk 0:02:27]} 12. e3 {[%clk 0:02:22]}  Qg6 {[%clk 0:01:26]} 13. Qe2 {[%clk 0:02:00]}  b5 {[%clk 0:01:08]} 14. f4 {[%clk 0:01:57]}  Bg4 {[%clk 0:01:07]} 15. Qf2 {[%clk 0:01:57]}  Qh5 {[%clk 0:01:07]} 16. e5 {[%clk 0:01:46]}  Bh3 {[%clk 0:00:23]} 17. Ne4 {[%clk 0:01:13]}  Bxg2 {[%clk 0:00:20]} 18. Qxg2 {[%clk 0:01:13]}  f5 {[%clk 0:00:12]} 19. Nf2 {[%clk 0:00:42]}  Qg6 {[%clk 0:00:09]} 20. Rad1 {[%clk 0:00:39]}  Bc5 {[%clk 0:00:07]} 21. e4 {[%clk 0:00:33]}  Bxd4 {[%clk 0:00:07]} 22. Rxd4 {[%clk 0:00:34]}  Na6 {[%clk 0:00:07]} 23. Rd6 {[%clk 0:00:18]}  Qf7 {[%clk 0:00:07]} 24. exf5 {[%clk 0:00:17]}  Qxf5 {[%clk 0:00:07]} 25. Qxc6 {[%clk 0:00:18]}  Nb4 {[%clk 0:00:07]} 26. Qxb5 {[%clk 0:00:18]}  Rab8 {[%clk 0:00:07]} 27. Qxc4+ {[%clk 0:00:18]}  Kh7 {[%clk 0:00:07]} 28. a3 {[%clk 0:00:15]}  Nc2 {[%clk 0:00:05]} 29. Qd3 {[%clk 0:00:12]}  Qxd3 {[%clk 0:00:05]} 30. Nxd3 {[%clk 0:00:13]}  Rec8 {[%clk 0:00:03]} 31. Rf2 {[%clk 0:00:11]}  Ne3 {[%clk 0:00:03]} 32. Re2 {[%clk 0:00:09]}  Nf5 {[%clk 0:00:03]} 33. Rd7 {[%clk 0:00:09]}  h5 {[%clk 0:00:03]} 34. Rxa7 {[%clk 0:00:08]}  Rd8 {[%clk 0:00:03]} 35. Nf2 {[%clk 0:00:06]}  Rbc8 {[%clk 0:00:02]} 36. Ne4 {[%clk 0:00:05]}  Rc1+ {[%clk 0:00:02]} 37. Kg2 {[%clk 0:00:05]}  Rdd1 {[%clk 0:00:03]} 38. Ng5+ {[%clk 0:00:05]}  Kh6 {[%clk 0:00:02]} 39. Ra6+ {[%clk 0:00:03]}  g6 {[%clk 0:00:03]} 40. e6 {[%clk 0:00:03]}  Kg7 {[%clk 0:00:03]} 41. e7 {[%clk 0:00:03]}  Rg1+ {[%clk 0:00:03]} 42. Kh3 {[%clk 0:00:03]}  Nh6 {[%clk 0:00:02]} 43. Rxg6+ {[%clk 0:00:01]}  Kh8 {[%clk 0:00:02]} 44. Rxh6+ {[%clk 0:00:02]}  Kg7 {[%clk 0:00:02]} 45. Rh7+ {[%clk 0:00:02]}  Kf6 {[%clk 0:00:02]} 46. e8=Q {[%clk 0:00:02]}  Rxg3+ {[%clk 0:00:03]} 47. hxg3 {[%clk 0:00:01]}  Rg1 {[%clk 0:00:04]} 48. Kh2 {[%clk 0:00:02]}  Rh1+ {[%clk 0:00:04]} 49. Kg2 {[%clk 0:00:02]}  Kf5 {[%clk 0:00:05]} 50. Kxh1 {[%clk 0:00:02]}  Kg4 {[%clk 0:00:06]} 51. Qe6+ {[%clk 0:00:02]}  Kxg3 {[%clk 0:00:06]} 52. Qh3+ {[%clk 0:00:02]}  Kxf4 {[%clk 0:00:06]} 53. Ne4 {[%clk 0:00:02]}  h4 {[%clk 0:00:06]} 54. Rxh4+ {[%clk 0:00:03]}  Ke5 {[%clk 0:00:06]} 55. Qg3+ {[%clk 0:00:03]}  Kd4 {[%clk 0:00:07]} 56. Nc3+ {[%clk 0:00:03]}  Kc5 {[%clk 0:00:07]} 57. Re5+ {[%clk 0:00:03]}  Kc6 {[%clk 0:00:07]} 58. Rh6+ {[%clk 0:00:04]}  Kd7 {[%clk 0:00:08]} 59. b4 {[%clk 0:00:03]}  Kd8 {[%clk 0:00:09]} 60. a4 {[%clk 0:00:04]}  Kd7 {[%clk 0:00:09]} 61. a5 {[%clk 0:00:05]} 1-0


[Site "https://www.chess.com"]